Workbook

Sheet Cash & Liquidity
B1: FEEDER FUND CASH MANAGEMENT
B3: Fund Code: | D3: GD1 | E3: =UPPER(VLOOKUP(FeederFund,InFund!A:B,2,0)) -> BIMB-ARABESQUE I GLOBAL DIVIDEND FUND 1
B4: Target Fund (Security Code): | D4: LU1245544975 | E4: =UPPER(VLOOKUP(TargetFund,InSecurity!A:B,2,0)) -> ARABESQUE Q3.17 SICAV SYSTEMATIC (USD)
B5: Last Value Date: | D5: 2018-09-03
B6: Value Date: | D6: 2018-09-04
B7: Exchange Rate (USD/MYR) | D7: 4.138 | E7: Using Currency Rate Dated : 04-Sep-2018
B8: Target Fund Price (t or last available) | D8: 118.63
G10: Summary
D11: =VLOOKUP(FeederFund,InFund!A:C,3,0) -> USD | H11: % | J11: UNITS | L11: =VLOOKUP(FeederFund,InFund!A:C,3,0) -> USD
C12: New Cash - USD: | D12: =SUMIFS(CrCn!F:F,CrCn!B:B,">"&D$5,CrCn!B:B,"<="&D$6,CrCn!E:E,"USD") -> 0 | G12: Analysis
C13: New Cash - MYR: | D13: =SUMIFS(CrCn!F:F,CrCn!B:B,">"&D$5,CrCn!B:B,"<="&D$6,CrCn!E:E,"MYR")/D7 -> 0 | G13: Last TB Close NAV | L13: =SUMPRODUCT((InTB!$A$3:$A$5001=D5)*InTB!$K$3:$K$5001)+D12+D13 -> 161605527.1
C14: Bank Balance: | G14: Minimum Target Investment | H14: 0.7 | L14: =ROUNDDOWN(H14*L13,-5) -> 113100000
C15: MYR | D15: =SUMPRODUCT((InTB!$A$3:$A$5001=D5)*(InTB!$D$3:$D$5001=C15)*(LEFT(InTB!$E$3:$E$5001,1)="5")*InTB!$K$3:$K$5001) -> 72661.94
C16: USD | D16: =SUMPRODUCT((InTB!$A$3:$A$5001=D5)*(InTB!$D$3:$D$5001=C16)*(LEFT(InTB!$E$3:$E$5001,1)="5")*InTB!$K$3:$K$5001) -> 365555.17 | G16: Current Holding | J16: =L16/TFPrice -> 1289343 | L16: =SUMIF(InTFHol!E:E,TargetFund,InTFHol!J:J) -> 152954760.1
C17: Money Market: | D17: =SUMPRODUCT((InTB!$A$3:$A$5001=D5)*(LEFT(InTB!$E$3:$E$5001,6)="100000")*(LEFT(InTB!$F$3:$F$5001,1)="2")*InTB!$K$3:$K$5001)+SUMPRODUCT((InTB!$A$3:$A$5001=D5)*(LEFT(InTB!$E$3:$E$5001,6)="139000")*(LEFT(InTB!$F$3:$F$5001,1)="2")*InTB!$K$3:$K$5001)+SUMPRODUCT((InTB!$A$3:$A$5001=D5)*(LEFT(InTB!$E$3:$E$5001,6)="199000")*(LEFT(InTB!$F$3:$F$5001,1)="2")*InTB!$K$3:$K$5001) -> 6008475.34 | G17: Booking Trade | H17: 2019-06-13 | J17: 11531 | L17: =ROUNDUP(J17*TFPrice,-5) -> 1400000
C18: Creation/Cancellation: | G18: Booking Trade | L18: =ROUNDUP(J18*TFPrice,-5) -> 0
C19: Debtor | D19: =SUMPRODUCT((InTB!$A$3:$A$5001=D5)*(LEFT(InTB!$E$3:$E$5001,6)="200800")*InTB!$K$3:$K$5001)-SUMPRODUCT((RIGHT(InCBCC!$G$3:$G$500,6)="200800")*InCBCC!$J$3:$J$500) -> 3606104.49 | G19: Booking Trade | L19: =ROUNDUP(J19*TFPrice,-5) -> 0
C20: Creditor | D20: =SUMPRODUCT((InTB!$A$3:$A$5001=D5)*(LEFT(InTB!$E$3:$E$5001,6)="300800")*InTB!$K$3:$K$5001)-SUMPRODUCT((RIGHT(InCBCC!$G$3:$G$500,6)="300800")*InCBCC!$J$3:$J$500) -> 0 | G20: Total Porfolio holding to date | H20: =ValueDate -> 2018-09-04 | L20: =SUM(L16:L19) -> 154354760.1
C21: Security Transaction:
C22: Debtor | D22: =SUMPRODUCT((InTB!$A$3:$A$5001=D5)*(LEFT(InTB!$E$3:$E$5001,3)="200")*InTB!$K$3:$K$5001)-SUMPRODUCT((InTB!$A$3:$A$5001=D5)*(LEFT(InTB!$E$3:$E$5001,6)="200800")*InTB!$K$3:$K$5001) -> 0 | G22: Mandatory Transaction
C23: Creditor | D23: =SUMPRODUCT((InTB!$A$3:$A$5001=D5)*(LEFT(InTB!$E$3:$E$5001,3)="300")*InTB!$K$3:$K$5001)-SUMPRODUCT((InTB!$A$3:$A$5001=D5)*(LEFT(InTB!$E$3:$E$5001,6)="300800")*InTB!$K$3:$K$5001) -> -1201722.86 | G23: Value (Creation) | J23: =ROUNDDOWN(L23/TFPrice,0) -> 0 | L23: =IF(MAX(0,L14-L20)>=0,MAX(0,L14-L20),0) -> 0
G24: Units (Redemption) | L24: =IF(MAX(0,L14-L16)<0,IF(TFPrice=0,0,ROUNDDOWN(L23/TFPrice,0)),0) -> 0
C25: Total Liquidity: | D25: =SUM(D12:D23) -> 8851074.08
G26: Transaction for Target of | H26: 0.97 | L26: =ROUNDDOWN(H26*L13,-5) -> 156700000
C27: Estimate Unit Create/Redeem: | D27: =IF(TFPrice = 0,0,ROUNDDOWN(D25/TFPrice,0)) -> 74610 | G27: Value (Creation) | J27: =ROUNDDOWN(L27/TFPrice,0) -> 20230 | L27: =ROUNDDOWN(IF(H26*L13-L20>=0,H26*L13-L20,0),-5) -> 2400000
C28: Estimate Value Create/Redeem: | D28: =ROUNDDOWN(D25,0) -> 8851074 | G28: Units (Redemption) | J28: =-ROUNDDOWN(L28/TFPrice,0) -> 0 | L28: =ROUNDDOWN(IF(H26*L13-L20<=0,H26*L13-L20,0),-5) -> 0
G30: Take Profit
G31: Target | H31: 0.25
G32: Current Holding (USD) | L32: =L20-SUMIFS(InTFHol!J:J,InTFHol!E:E,TargetFund,InTFHol!A:A,"FO") -> 154354760.1
G33: Current Holding (Units) | L33: =J16 -> 1289343
G34: Current Gains (100% holdings in TF): | L34: =SUMIF(InTFHol!E:E,TargetFund,InTFHol!L:L)+SUMIF(InTFHol!E:E,TargetFund,InTFHol!M:M) -> 10108809.28
G35: % Gains: | L35: =IF(L32=0,0,L34/L32) -> 0.06549075179
G36: Remarks: | L36: =IF(L35>=H31,"TAKE PROFIT","N/A") -> N/A
G37: Redeem Unit (Take Profit) | L37: =ROUNDDOWN(IF(TFPrice=0,0,H31*L32/TFPrice),0) -> 325286
G38: Realised gain from redeem units | L38: =ROUND(H31*L34,2) -> 2527202.32

Sheet CrCn
A1: Key Date | B1: Value Date | C1: Fund Code | D1: Creation / Redeem | E1: Currency | F1: Proceed
A2: 2015-09-01 | B2: 2015-09-01 | C2: GIP1 | D2: Create | E2: MYR | F2: 500000
A3: 2015-09-01 | B3: 2015-09-01 | C3: GIP1 | D3: Create | E3: USD | F3: 1000000
A4: 2015-09-02 | B4: 2015-09-02 | C4: GIP1 | D4: Create | E4: MYR | F4: 20000000
A5: 2015-09-02 | B5: 2015-09-02 | C5: GIP1 | D5: Create | E5: USD | F5: 10000000
A6: 2015-09-03 | B6: 2015-09-03 | C6: GIP1 | D6: Create | E6: MYR | F6: 25025
A7: 2015-09-03 | B7: 2015-09-03 | C7: GIP1 | D7: Create | E7: USD | F7: 400480

Sheet InFund
A2: qFundCode | B2: FundName | C2: FundCurrency
A3: BAPAC | B3: BIMB-ARABESQUE ASIA PACIFIC | C3: USD
A4: BAPACMYR | B4: BAPAC (MYR) | C4: MYR
A5: BAPACUSD | B5: BAPAC (USD) | C5: USD
A6: BICMF | B6: BIMB I Cash Management Fund | C6: MYR
A7: BICMF3 | B7: BIMB I Cash Management Fund 3 | C7: MYR
A8: BIMMF | B8: BIMB Invest Money Market Fund | C8: MYR
A9: BIW | B9: BIMB Invest Wafiyah | C9: MYR
A10: BMSEF | B10: BIMB-Arabesque Malaysia Shariah-ESG Equity Fund | C10: MYR
A11: BMSEFEUR | B11: BMSEF (EUR) | C11: EUR
A12: BMSEFMYR | B12: BMSEF (MYR) | C12: MYR
A13: BMSEFSGD | B13: BMSEF (SGD) | C13: SGD
A14: BMSEFUSD | B14: BMSEF (USD) | C14: USD
A15: BSF | B15: BIMB ESG Sukuk Fund | C15: MYR
A16: BSF-Class A | B16: BSF-Class A | C16: MYR
A17: BSF-Class B | B17: BSF-Class B | C17: USD
A18: BSF-Class C | B18: BSF-Class C | C18: SGD
A19: BSF-Class D | B19: BSF-Class D | C19: MYR
A20: BSF-Class E | B20: BSF-Class E | C20: USD
A21: BVMSEF | B21: BIMB-Arabesque Valuecap Malaysia Shariah-ESG Eqt | C21: MYR
A22: GD1 | B22: BIMB-Arabesque i Global Dividend Fund 1 | C22: USD
A23: GD1MYR | B23: BIMB-Arabesque i Global Dividend Fund 1 (MYR) | C23: MYR
A24: GD1RM | B24: BIMB i Global Dividend Fund 1 (MYR) | C24: MYR
A25: GD1USD | B25: BIMB-Arabesque i Global Dividend Fund 1 (USD) | C25: USD
A26: IB | B26: BIMB Dana Al-Fakhim | C26: MYR
A27: ID | B27: BIMB Dana Al-Falah | C27: MYR
A28: IF | B28: BIMB I Flexi Fund | C28: MYR
A29: IP | B29: BIMB I Dividend Fund | C29: MYR
A30: IS | B30: BIMB Dana Al-Munsif | C30: MYR
A31: TP | B31: BIMB I Growth | C31: MYR

Sheet InSecurity
A2: qStockCode | B2: StockName | C2: Description | D2: Stock Currency
A3: 0821EA | B3: MYETFDJ | C3: MYETF DOW JONES ISLAMIC MARKET MALAYSIA | D3: MYR
A4: 1155 | B4: MAYBANK | C4: Malayan Banking Berhad | D4: MYR
A5: 4324 | B5: HENGYUAN | C5: HENGYUAN REFINING COMPANY BERHAD | D5: MYR
A6: 5110 | B6: UOAREIT | C6: UOA Reits | D6: MYR
A7: 5120 | B7: AMFIRST | C7: AMFIRST Reits | D7: MYR
A8: 5131 | B8: ZHULIAN | C8: ZHULIAN Corporation Berhad | D8: MYR
A9: 5878 | B9: KPJ | C9: KPJ Healthcare Berhad | D9: MYR
A10: LU1245544975 | B10: Arabesque Q3.17 SICAV Systematic (USD) | C10: Arabesque Q3.17 SICAV - Arabesque Q3.17 Systematic (USD) | D10: USD

Sheet InTB
A2: TBDate | B2: GLCode | C2: qFundCode | D2: qCurrencyCode | E2: ShortGL | F2: qAssetAccType | G2: DebitAmt | H2: CreditAmt | I2: SumDrCr | J2: Ex Rate | K2: SumDrCrFC
A3: 2018-09-03 | B3: GD1-MYR000-200800 | C3: GD1 | D3: MYR | E3: 200800 | F3: 000 | G3: 442057535.6 | H3: -434791707.4 | I3: 7265828.16 | J3: 0.2422 | K3: 1759783.58
A4: 2018-09-03 | B4: GD1-MYR000-500000 | C4: GD1 | D4: MYR | E4: 500000 | F4: 000 | G4: 2390519143 | H4: -2390219135 | I4: 300008.02 | J4: 0.2422 | K4: 72661.94
A5: 2018-09-03 | B5: GD1-USD000-200800 | C5: GD1 | D5: USD | E5: 200800 | F5: 000 | G5: 7082893.33 | H5: -5235251.11 | I5: 1847642.22 | J5: 1 | K5: 1847642.22
A6: 2018-09-03 | B6: GD1-USD000-220103 | C6: GD1 | D6: USD | E6: 220103 | F6: 000 | G6: 1044782.04 | H6: -935131.88 | I6: 109650.16 | J6: 1 | K6: 109650.16
A7: 2018-09-03 | B7: GD1-USD000-300300 | C7: GD1 | D7: USD | E7: 300300 | F7: 000 | G7: 0 | H7: -1201722.86 | I7: -1201722.86 | J7: 1 | K7: -1201722.86
A8: 2018-09-03 | B8: GD1-USD000-320103 | C8: GD1 | D8: USD | E8: 320103 | F8: 000 | G8: 2376569.35 | H8: -2631280.79 | I8: -254711.44 | J8: 1 | K8: -254711.44
A9: 2018-09-03 | B9: GD1-USD000-320104 | C9: GD1 | D9: USD | E9: 320104 | F9: 000 | G9: 65249.25 | H9: -73739.62 | I9: -8490.37 | J9: 1 | K9: -8490.37
A10: 2018-09-03 | B10: GD1-USD000-320105 | C10: GD1 | D10: USD | E10: 320105 | F10: 000 | G10: 8141.84 | H10: -11715.23 | I10: -3573.39 | J10: 1 | K10: -3573.39
A11: 2018-09-03 | B11: GD1-USD000-320107 | C11: GD1 | D11: USD | E11: 320107 | F11: 000 | G11: 4040.62 | H11: -5237.5 | I11: -1196.88 | J11: 1 | K11: -1196.88
A12: 2018-09-03 | B12: GD1-USD000-320209 | C12: GD1 | D12: USD | E12: 320209 | F12: 000 | G12: 38269.65 | H12: -42898.97 | I12: -4629.32 | J12: 1 | K12: -4629.32
A13: 2018-09-03 | B13: GD1-USD000-320883 | C13: GD1 | D13: USD | E13: 320883 | F13: 000 | G13: 3.11 | H13: 0 | I13: 3.11 | J13: 1 | K13: 3.11
A14: 2018-09-03 | B14: GD1-USD000-500000 | C14: GD1 | D14: USD | E14: 500000 | F14: 000 | G14: 174936543.3 | H14: -174570988.2 | I14: 365555.17 | J14: 1 | K14: 365555.17
A15: 2018-09-03 | B15: GD1-USD210-100000 | C15: GD1 | D15: USD | E15: 100000 | F15: 210 | G15: 345337397.7 | H15: -339312063.6 | I15: 6025334.04 | J15: 1 | K15: 6025334.04
A16: 2018-09-03 | B16: GD1-USD210-139000 | C16: GD1 | D16: USD | E16: 139000 | F16: 210 | G16: 1931 | H16: 0 | I16: 1931 | J16: 1 | K16: 1931
A17: 2018-09-03 | B17: GD1-USD210-199000 | C17: GD1 | D17: USD | E17: 199000 | F17: 210 | G17: 0 | H17: -18789.7 | I17: -18789.7 | J17: 1 | K17: -18789.7
A18: 2018-09-03 | B18: GD1-USD415-100000 | C18: GD1 | D18: USD | E18: 100000 | F18: 415 | G18: 165673265.7 | H18: -22827314.89 | I18: 142845950.8 | J18: 1 | K18: 142845950.8
A19: 2018-09-03 | B19: GD1-USD415-189000 | C19: GD1 | D19: USD | E19: 189000 | F19: 415 | G19: 10070128.99 | H19: 0 | I19: 10070128.99 | J19: 1 | K19: 10070128.99
A20: 2018-09-04 | B20: GD1-MYR000-200800 | C20: GD1 | D20: MYR | E20: 200800 | F20: 000 | G20: 442057535.6 | H20: -435403288.5 | I20: 6654247.07 | J20: 0.2413 | K20: 1605669.82
A21: 2018-09-04 | B21: GD1-MYR000-500000 | C21: GD1 | D21: MYR | E21: 500000 | F21: 000 | G21: 2406487877 | H21: -2405568368 | I21: 919508.71 | J21: 0.2413 | K21: 221877.45
A22: 2018-09-04 | B22: GD1-USD000-200800 | C22: GD1 | D22: USD | E22: 200800 | F22: 000 | G22: 7082893.33 | H22: -5235251.11 | I22: 1847642.22 | J22: 1 | K22: 1847642.22
A23: 2018-09-04 | B23: GD1-USD000-220103 | C23: GD1 | D23: USD | E23: 220103 | F23: 000 | G23: 1044782.04 | H23: -935131.88 | I23: 109650.16 | J23: 1 | K23: 109650.16
A24: 2018-09-04 | B24: GD1-USD000-300300 | C24: GD1 | D24: USD | E24: 300300 | F24: 000 | G24: 0 | H24: -1201722.86 | I24: -1201722.86 | J24: 1 | K24: -1201722.86
A25: 2018-09-04 | B25: GD1-USD000-320103 | C25: GD1 | D25: USD | E25: 320103 | F25: 000 | G25: 2376569.35 | H25: -2631280.79 | I25: -254711.44 | J25: 1 | K25: -254711.44
A26: 2018-09-04 | B26: GD1-USD000-320104 | C26: GD1 | D26: USD | E26: 320104 | F26: 000 | G26: 65249.25 | H26: -73739.62 | I26: -8490.37 | J26: 1 | K26: -8490.37
A27: 2018-09-04 | B27: GD1-USD000-320105 | C27: GD1 | D27: USD | E27: 320105 | F27: 000 | G27: 8141.84 | H27: -11715.23 | I27: -3573.39 | J27: 1 | K27: -3573.39
A28: 2018-09-04 | B28: GD1-USD000-320107 | C28: GD1 | D28: USD | E28: 320107 | F28: 000 | G28: 4040.62 | H28: -5237.5 | I28: -1196.88 | J28: 1 | K28: -1196.88
A29: 2018-09-04 | B29: GD1-USD000-320209 | C29: GD1 | D29: USD | E29: 320209 | F29: 000 | G29: 38269.65 | H29: -42898.97 | I29: -4629.32 | J29: 1 | K29: -4629.32
A30: 2018-09-04 | B30: GD1-USD000-320883 | C30: GD1 | D30: USD | E30: 320883 | F30: 000 | G30: 3.11 | H30: 0 | I30: 3.11 | J30: 1 | K30: 3.11
A31: 2018-09-04 | B31: GD1-USD000-500000 | C31: GD1 | D31: USD | E31: 500000 | F31: 000 | G31: 175786467.2 | H31: -174570988.2 | I31: 1215479.06 | J31: 1 | K31: 1215479.06
A32: 2018-09-04 | B32: GD1-USD210-100000 | C32: GD1 | D32: USD | E32: 100000 | F32: 210 | G32: 348195577.7 | H32: -343049366.7 | I32: 5146211.05 | J32: 1 | K32: 5146211.05
A33: 2018-09-04 | B33: GD1-USD210-139000 | C33: GD1 | D33: USD | E33: 139000 | F33: 210 | G33: 664.88 | H33: 0 | I33: 664.88 | J33: 1 | K33: 664.88
A34: 2018-09-04 | B34: GD1-USD210-199000 | C34: GD1 | D34: USD | E34: 199000 | F34: 210 | G34: 0 | H34: -5529.32 | I34: -5529.32 | J34: 1 | K34: -5529.32
A35: 2018-09-04 | B35: GD1-USD415-100000 | C35: GD1 | D35: USD | E35: 100000 | F35: 415 | G35: 165673265.7 | H35: -22827314.89 | I35: 142845950.8 | J35: 1 | K35: 142845950.8
A36: 2018-09-04 | B36: GD1-USD415-189000 | C36: GD1 | D36: USD | E36: 189000 | F36: 415 | G36: 10108809.28 | H36: 0 | I36: 10108809.28 | J36: 1 | K36: 10108809.28

Sheet InCBCC
A2: qEventTrxID | B2: qTrnCode | C2: qFundCode | D2: AccDate | E2: PayDate | F2: SCNetProceed | G2: AccSCNetProceed | H2: SettCurrency | I2: ExRate | J2: FCAmount
A3: CSH*180900065I | B3: CB | C3: GD1 | D3: 2018-09-03 | E3: 2018-09-13 | F3: 5455.46 | G3: GD1-MYR000-200800 | H3: MYR | I3: 0.2422 | J3: 1321.31

Sheet InTFHol
A2: Office | B2: HistoryDate | C2: qProductType | D2: qFundCode | E2: qStockCode | F2: UnitFaceValue | G2: CostSC | H2: CostFC | I2: MarketValueSC | J2: MarketValueFC | K2: RefMarketValueFC | L2: UnrealisedGainsStock | M2: UnrealisedGainsExchg
A3: BO | B3: 2018-09-04 | C3: EQT | D3: GD1 | E3: LU1245544975 | F3: 1289343 | G3: 142845950.8 | H3: 142845950.8 | I3: 152954760.1 | J3: 152954760.1 | K3: 152954760.1 | L3: 10108809.28 | M3: 0
